[Event "*** Titled Tuesday 3|2 Blitz"]
[Site "Chess.com"]
[Date "2015.11.03"]
[Round "7"]
[White "kikydu96"]
[Black "Alliswell998"]
[Result "1-0"]
[WhiteElo "2221"]
[BlackElo "2097"]
[TimeControl "180+2"]
[EndTime "18:24:06 PST"]
[Termination "kikydu96 won by checkmate"]

1. b3 {[%clk 0:03:01.9]} 1... Nf6 {[%clk 0:03:00.2]} 2. Bb2 {[%clk 0:02:53.6]}
2... g6 {[%clk 0:03:00.9]} 3. Bxf6 {[%clk 0:02:54.3]} 3... exf6 {[%clk
0:03:02.1]} 4. c4 {[%clk 0:02:56]} 4... Bg7 {[%clk 0:03:03.6]} 5. Nc3 {[%clk
0:02:57.6]} 5... O-O {[%clk 0:03:04.7]} 6. Rc1 {[%clk 0:02:59.2]} 6... b6 {[%clk
0:03:03.1]} 7. e3 {[%clk 0:03:00.8]} 7... Bb7 {[%clk 0:03:04.3]} 8. Nf3 {[%clk
0:03:02.4]} 8... Re8 {[%clk 0:03:03.3]} 9. Be2 {[%clk 0:03:03.8]} 9... f5 {[%clk
0:03:04.6]} 10. O-O {[%clk 0:03:05.1]} 10... d6 {[%clk 0:03:05.9]} 11. d4 {[%clk
0:03:06.2]} 11... Nd7 {[%clk 0:03:06.7]} 12. d5 {[%clk 0:03:07.5]} 12... Nc5
{[%clk 0:03:04.3]} 13. b4 {[%clk 0:03:08.1]} 13... Ne4 {[%clk 0:03:04.7]} 14.
Nxe4 {[%clk 0:03:09.2]} 14... fxe4 {[%clk 0:03:05.4]} 15. Nd4 {[%clk 0:03:09.7]}
15... Qh4 {[%clk 0:03:04.7]} 16. g3 {[%clk 0:03:09.7]} 16... Qh3 {[%clk
0:03:01.7]} 17. Bg4 {[%clk 0:03:10]} 17... Qh6 {[%clk 0:03:02]} 18. Nb5 {[%clk
0:03:03]} 18... Re7 {[%clk 0:02:59.8]} 19. c5 {[%clk 0:03:02.8]} 19... f5 {[%clk
0:02:53.9]} 20. Be2 {[%clk 0:03:02.7]} 20... Be5 {[%clk 0:02:49.6]} 21. cxd6
{[%clk 0:02:42.6]} 21... cxd6 {[%clk 0:02:49.7]} 22. Nc7 {[%clk 0:02:33.2]}
22... Rf8 {[%clk 0:02:33.3]} 23. Ne6 {[%clk 0:02:28.4]} 23... Rfe8 {[%clk
0:02:34]} 24. Nc7 {[%clk 0:02:22.2]} 24... Rf8 {[%clk 0:02:25.8]} 25. Ne6 {[%clk
0:02:22.6]} 25... Rfe8 {[%clk 0:02:26.6]} 26. Bb5 {[%clk 0:02:23.4]} 26... Rb8
{[%clk 0:02:19.3]} 27. h4 {[%clk 0:02:18.7]} 27... Kf7 {[%clk 0:01:21.3]} 28.
Ng5+ {[%clk 0:02:06.3]} 28... Kg8 {[%clk 0:01:20.3]} 29. Bc6 {[%clk 0:02:05.8]}
29... Ba6 {[%clk 0:01:17.9]} 30. b5 {[%clk 0:02:06.6]} 30... Bc8 {[%clk
0:01:17.2]} 31. a4 {[%clk 0:02:02.6]} 31... Bf6 {[%clk 0:01:12.6]} 32. Nh3
{[%clk 0:01:58]} 32... Bxh4 {[%clk 0:01:09.1]} 33. gxh4 {[%clk 0:01:53.6]} 33...
Qxh4 {[%clk 0:01:10]} 34. Kg2 {[%clk 0:01:55]} 34... g5 {[%clk 0:00:57.2]} 35.
Rh1 {[%clk 0:01:52.6]} 35... Rg7 {[%clk 0:00:52.8]} 36. Ng1 {[%clk 0:01:43.9]}
36... Qg4+ {[%clk 0:00:45.3]} 37. Qxg4 {[%clk 0:01:43.9]} 37... fxg4 {[%clk
0:00:46.8]} 38. Ne2 {[%clk 0:01:44.7]} 38... Bf5 {[%clk 0:00:42.2]} 39. Nd4
{[%clk 0:01:35.8]} 39... Bg6 {[%clk 0:00:41.2]} 40. Kg3 {[%clk 0:01:28.8]} 40...
Rf7 {[%clk 0:00:32.4]} 41. Ne6 {[%clk 0:01:24.7]} 41... Rf3+ {[%clk 0:00:28.6]}
42. Kg2 {[%clk 0:01:25.2]} 42... Rf5 {[%clk 0:00:22.1]} 43. Bd7 {[%clk
0:01:23.6]} 43... Rb7 {[%clk 0:00:21.4]} 44. Rc8+ {[%clk 0:01:21.9]} 44... Kf7
{[%clk 0:00:22.7]} 45. Nd8+ {[%clk 0:01:20.5]} 45... Ke7 {[%clk 0:00:23.9]} 46.
Bxf5 {[%clk 0:01:20.2]} 46... Bxf5 {[%clk 0:00:21.6]} 47. Nxb7 {[%clk
0:01:21.4]} 47... Bxc8 {[%clk 0:00:22.3]} 48. Rxh7+ {[%clk 0:01:22.9]} 48... Kf6
{[%clk 0:00:23.5]} 49. Nxd6 {[%clk 0:01:23.9]} 49... Bf5 {[%clk 0:00:23.5]} 50.
Rf7+ {[%clk 0:01:21.9]} 50... Ke5 {[%clk 0:00:24.2]} 51. Rxf5+ {[%clk
0:01:23.5]} 51... Kxd6 {[%clk 0:00:25.2]} 52. Rxg5 {[%clk 0:01:25.1]} 52... a5
{[%clk 0:00:25.1]} 53. bxa6 {[%clk 0:01:25.2]} 53... b5 {[%clk 0:00:26]} 54.
axb5 {[%clk 0:01:26]} 54... Kc5 {[%clk 0:00:27.7]} 55. a7 {[%clk 0:01:26.1]}
55... Kb6 {[%clk 0:00:27.3]} 56. a8=Q {[%clk 0:01:25.7]} 56... Kc5 {[%clk
0:00:28.5]} 57. Qc6+ {[%clk 0:01:26.6]} 57... Kb4 {[%clk 0:00:29.4]} 58. b6
{[%clk 0:01:24.3]} 58... Ka5 {[%clk 0:00:28.5]} 59. d6+ {[%clk 0:01:25.1]} 59...
Kb4 {[%clk 0:00:28.3]} 60. Rb5+ {[%clk 0:01:25.9]} 60... Ka4 {[%clk 0:00:29.3]}
61. b7 {[%clk 0:01:26.8]} 61... Ka3 {[%clk 0:00:30.2]} 62. Qa6# {[%clk 0:01:28]}
1-0

[Event "*** Titled Tuesday 3|2 Blitz"]
[Site "Chess.com"]
[Date "2015.11.03"]
[Round "7"]
[White "jcibarra"]
[Black "Malev212"]
[Result "0-1"]
[WhiteElo "2531"]
[BlackElo "2330"]
[TimeControl "180+2"]
[EndTime "18:24:13 PST"]
[Termination "Malev212 won by resignation"]

1. e4 {[%clk 0:03:01.9]} 1... c5 {[%clk 0:02:59.8]} 2. Nf3 {[%clk 0:03:03]} 2...
a6 {[%clk 0:03:00.6]} 3. c4 {[%clk 0:03:02.4]} 3... e6 {[%clk 0:02:59.9]} 4. d4
{[%clk 0:03:03.8]} 4... cxd4 {[%clk 0:03:00.1]} 5. Nxd4 {[%clk 0:03:05.7]} 5...
b6 {[%clk 0:02:58.6]} 6. Nc3 {[%clk 0:03:05.8]} 6... Bb7 {[%clk 0:02:58.9]} 7.
a3 {[%clk 0:03:07.2]} 7... d6 {[%clk 0:02:55.7]} 8. Be3 {[%clk 0:03:06.7]} 8...
Nf6 {[%clk 0:02:56]} 9. f3 {[%clk 0:03:07.9]} 9... Nbd7 {[%clk 0:02:56.2]} 10.
Be2 {[%clk 0:03:08.9]} 10... Be7 {[%clk 0:02:57.1]} 11. O-O {[%clk 0:03:10]}
11... O-O {[%clk 0:02:57.7]} 12. Qd2 {[%clk 0:03:09.6]} 12... Qc7 {[%clk
0:02:58.4]} 13. Rac1 {[%clk 0:03:09.7]} 13... Rfc8 {[%clk 0:02:51.3]} 14. b4
{[%clk 0:03:10.4]} 14... Rab8 {[%clk 0:02:49.4]} 15. Rfd1 {[%clk 0:03:10.2]}
15... Qd8 {[%clk 0:02:47.9]} 16. Bf1 {[%clk 0:03:11.2]} 16... Qe8 {[%clk
0:02:39.7]} 17. Nb3 {[%clk 0:03:09.8]} 17... h5 {[%clk 0:02:37]} 18. Bf4 {[%clk
0:03:03.4]} 18... Ne5 {[%clk 0:02:07.3]} 19. c5 {[%clk 0:03:02.6]} 19... bxc5
{[%clk 0:02:06.1]} 20. bxc5 {[%clk 0:03:03.2]} 20... Rd8 {[%clk 0:01:57.1]} 21.
Qc2 {[%clk 0:02:39.5]} 21... Rbc8 {[%clk 0:01:20.1]} 22. cxd6 {[%clk 0:02:39.7]}
22... Bxd6 {[%clk 0:01:20.2]} 23. Rxd6 {[%clk 0:02:37]} 23... Rxd6 {[%clk
0:01:20.3]} 24. Bxe5 {[%clk 0:02:38.1]} 24... Rdd8 {[%clk 0:01:17.2]} 25. Na5
{[%clk 0:02:24.1]} 25... Ba8 {[%clk 0:01:16.8]} 26. Qb2 {[%clk 0:02:13.3]} 26...
Rc5 {[%clk 0:01:09.9]} 27. Bxf6 {[%clk 0:02:04.2]} 27... gxf6 {[%clk 0:01:10.2]}
28. Nb3 {[%clk 0:02:01.8]} 28... Rcc8 {[%clk 0:01:05.1]} 29. Bxa6 {[%clk
0:01:53.6]} 29... Rb8 {[%clk 0:01:05.8]} 30. a4 {[%clk 0:01:47]} 30... f5 {[%clk
0:01:04.5]} 31. Bb5 {[%clk 0:01:47]} 31... Qe7 {[%clk 0:01:05.5]} 32. Re1 {[%clk
0:01:35.5]} 32... Rbc8 {[%clk 0:00:54.3]} 33. Nd1 {[%clk 0:00:40.3]} 33... fxe4
{[%clk 0:00:48.2]} 34. fxe4 {[%clk 0:00:42.2]} 34... Qb4 {[%clk 0:00:32.3]} 35.
Rf1 {[%clk 0:00:35.1]} 35... Bxe4 {[%clk 0:00:31.4]} 36. Nf2 {[%clk 0:00:18]}
36... Bg6 {[%clk 0:00:30.9]} 37. Re1 {[%clk 0:00:05.5]} 37... Qxe1+ {[%clk
0:00:30.1]} 38. Bf1 {[%clk 0:00:06.6]} 38... Qe3 {[%clk 0:00:28.1]} 39. Na5
{[%clk 0:00:03.1]} 39... Rd2 {[%clk 0:00:25.1]} 40. Qf6 {[%clk 0:00:04.5]} 40...
Rcc2 {[%clk 0:00:24.6]} 41. Nc4 {[%clk 0:00:05.5]} 41... Qxf2+ {[%clk 0:00:24]}
42. Qxf2 {[%clk 0:00:06.7]} 42... Rxf2 {[%clk 0:00:24.5]} 43. a5 {[%clk
0:00:08.6]} 43... Rxf1+ {[%clk 0:00:24.7]} 0-1

[Event "*** Titled Tuesday 3|2 Blitz"]
[Site "Chess.com"]
[Date "2015.11.03"]
[Round "7"]
[White "SerGo055"]
[Black "ArnaudovP"]
[Result "0-1"]
[WhiteElo "2403"]
[BlackElo "2334"]
[TimeControl "180+2"]
[EndTime "18:25:08 PST"]
[Termination "ArnaudovP won by resignation"]

1. d4 {[%clk 0:02:50.7]} 1... Nf6 {[%clk 0:02:50.9]} 2. Nf3 {[%clk 0:02:51.3]}
2... e6 {[%clk 0:02:50.8]} 3. c4 {[%clk 0:02:52.3]} 3... Nc6 {[%clk 0:02:51.5]}
4. Bg5 {[%clk 0:02:43.4]} 4... h6 {[%clk 0:02:50]} 5. Bh4 {[%clk 0:02:43.6]}
5... Bb4+ {[%clk 0:02:44.9]} 6. Nbd2 {[%clk 0:02:43.7]} 6... d5 {[%clk
0:02:30.1]} 7. e3 {[%clk 0:02:43.9]} 7... Be7 {[%clk 0:02:27]} 8. Bd3 {[%clk
0:02:42.3]} 8... O-O {[%clk 0:02:24.4]} 9. O-O {[%clk 0:02:43.1]} 9... b6 {[%clk
0:02:23.7]} 10. Qc2 {[%clk 0:02:38.6]} 10... Nb4 {[%clk 0:02:23.4]} 11. Qb1
{[%clk 0:02:39.8]} 11... Nxd3 {[%clk 0:02:23.7]} 12. Qxd3 {[%clk 0:02:41.4]}
12... Bb7 {[%clk 0:02:25]} 13. Rac1 {[%clk 0:02:39.5]} 13... c5 {[%clk
0:02:24.6]} 14. cxd5 {[%clk 0:02:40.1]} 14... Nxd5 {[%clk 0:02:14.5]} 15. Bxe7
{[%clk 0:02:38.9]} 15... Nxe7 {[%clk 0:02:15.3]} 16. Qa3 {[%clk 0:02:36.3]}
16... cxd4 {[%clk 0:02:14.7]} 17. Nxd4 {[%clk 0:02:37.2]} 17... Qd5 {[%clk
0:02:10]} 18. N2f3 {[%clk 0:02:36.7]} 18... Nf5 {[%clk 0:01:59]} 19. Rfd1 {[%clk
0:02:32.4]} 19... Rfd8 {[%clk 0:01:53]} 20. h3 {[%clk 0:02:27.1]} 20... Qe4
{[%clk 0:01:48.3]} 21. Nxf5 {[%clk 0:02:15.9]} 21... Qxf5 {[%clk 0:01:47.5]} 22.
Rxd8+ {[%clk 0:01:55.1]} 22... Rxd8 {[%clk 0:01:46.8]} 23. Qe7 {[%clk
0:01:55.9]} 23... Rb8 {[%clk 0:01:42.8]} 24. Qc7 {[%clk 0:01:55.9]} 24... Rc8
{[%clk 0:01:41.7]} 25. Qxb7 {[%clk 0:01:11]} 25... Rxc1+ {[%clk 0:01:41.2]} 26.
Kh2 {[%clk 0:01:12.6]} 26... Qb1 {[%clk 0:01:33.3]} 27. Ne5 {[%clk 0:00:32.4]}
27... Rh1+ {[%clk 0:01:30.8]} 28. Kg3 {[%clk 0:00:33]} 28... Qf5 {[%clk
0:01:31.7]} 29. f4 {[%clk 0:00:32.7]} 29... Re1 {[%clk 0:01:18.8]} 30. Kf2
{[%clk 0:00:30.1]} 30... Rc1 {[%clk 0:01:17.9]} 31. g4 {[%clk 0:00:24.4]} 31...
Qf6 {[%clk 0:01:13.2]} 32. Kg3 {[%clk 0:00:20.8]} 32... Rg1+ {[%clk 0:00:50.4]}
33. Kf2 {[%clk 0:00:20]} 33... Rd1 {[%clk 0:00:50.3]} 34. Kg3 {[%clk 0:00:17]}
34... Rd8 {[%clk 0:00:47.5]} 35. h4 {[%clk 0:00:17.1]} 35... Re8 {[%clk
0:00:47.1]} 36. g5 {[%clk 0:00:14.2]} 36... Qe7 {[%clk 0:00:46.5]} 37. Qc6
{[%clk 0:00:12.3]} 37... f6 {[%clk 0:00:40.4]} 38. Nf3 {[%clk 0:00:12.8]} 38...
hxg5 {[%clk 0:00:39.1]} 39. hxg5 {[%clk 0:00:13.2]} 39... Rd8 {[%clk 0:00:35.5]}
40. Qc4 {[%clk 0:00:08.7]} 40... Qd6 {[%clk 0:00:35.2]} 41. Qe4 {[%clk
0:00:07.2]} 41... Qd5 {[%clk 0:00:34.3]} 42. Qg6 {[%clk 0:00:06.7]} 42... Qf5
{[%clk 0:00:35]} 43. Qh5 {[%clk 0:00:06.5]} 43... Qh7 {[%clk 0:00:32.6]} 44. Qg4
{[%clk 0:00:03.2]} 44... f5 {[%clk 0:00:33.5]} 45. Qh4 {[%clk 0:00:04]} 45...
Qxh4+ {[%clk 0:00:34]} 46. Nxh4 {[%clk 0:00:05.4]} 46... Rd2 {[%clk 0:00:34.7]}
47. b4 {[%clk 0:00:05.8]} 47... Rxa2 {[%clk 0:00:35.4]} 48. Ng6 {[%clk
0:00:06.8]} 48... a5 {[%clk 0:00:35.3]} 49. bxa5 {[%clk 0:00:06.4]} 49... bxa5
{[%clk 0:00:36.4]} 50. Ne7+ {[%clk 0:00:06.8]} 50... Kf7 {[%clk 0:00:36.7]} 51.
Nc6 {[%clk 0:00:08.4]} 51... a4 {[%clk 0:00:37.6]} 52. e4 {[%clk 0:00:07.2]}
52... Ra3+ {[%clk 0:00:35.4]} 53. Kf2 {[%clk 0:00:07.5]} 53... fxe4 {[%clk
0:00:36.2]} 54. Ke2 {[%clk 0:00:09]} 54... Rh3 {[%clk 0:00:33.9]} 55. Ne5+
{[%clk 0:00:07]} 55... Ke8 {[%clk 0:00:34]} 0-1

[Event "*** Titled Tuesday 3|2 Blitz"]
[Site "Chess.com"]
[Date "2015.11.03"]
[Round "8"]
[White "LePlusMortel"]
[Black "ItalianMachine"]
[Result "1-0"]
[WhiteElo "2427"]
[BlackElo "2270"]
[TimeControl "180+2"]
[EndTime "18:32:42 PST"]
[Termination "LePlusMortel won by resignation"]

1. Nf3 {[%clk 0:03:01.9]} 1... Nf6 {[%clk 0:03:00]} 2. g3 {[%clk 0:03:01.2]}
2... e6 {[%clk 0:02:58.2]} 3. Bg2 {[%clk 0:03:02.2]} 3... d5 {[%clk 0:02:59.8]}
4. O-O {[%clk 0:03:04.1]} 4... Be7 {[%clk 0:03:01]} 5. d3 {[%clk 0:03:06]} 5...
O-O {[%clk 0:03:02.4]} 6. Nbd2 {[%clk 0:03:07.8]} 6... c5 {[%clk 0:03:03.9]} 7.
e4 {[%clk 0:03:09.7]} 7... Nc6 {[%clk 0:03:05.1]} 8. e5 {[%clk 0:03:11]} 8...
Nd7 {[%clk 0:03:05.4]} 9. Re1 {[%clk 0:03:12.7]} 9... f6 {[%clk 0:02:47.5]} 10.
exf6 {[%clk 0:03:13.2]} 10... Nxf6 {[%clk 0:02:48.7]} 11. a3 {[%clk 0:03:14.2]}
11... Bd6 {[%clk 0:02:40.3]} 12. c4 {[%clk 0:03:15.1]} 12... Re8 {[%clk
0:02:33.3]} 13. Rb1 {[%clk 0:03:13.2]} 13... a5 {[%clk 0:02:34]} 14. b3 {[%clk
0:03:14.2]} 14... b6 {[%clk 0:02:30.8]} 15. Bb2 {[%clk 0:03:13.8]} 15... Bb7
{[%clk 0:02:32.3]} 16. Qe2 {[%clk 0:03:11.7]} 16... a4 {[%clk 0:02:14.4]} 17.
bxa4 {[%clk 0:02:57.5]} 17... Rxa4 {[%clk 0:02:13.1]} 18. Bxf6 {[%clk
0:02:55.6]} 18... Qxf6 {[%clk 0:02:13.8]} 19. cxd5 {[%clk 0:02:56.4]} 19... Nd4
{[%clk 0:01:55.2]} 20. Nxd4 {[%clk 0:02:57.1]} 20... Qxd4 {[%clk 0:01:56.2]} 21.
Rxb6 {[%clk 0:02:41.7]} 1-0

[Event "*** Titled Tuesday 3|2 Blitz"]
[Site "Chess.com"]
[Date "2015.11.03"]
[Round "8"]
[White "ArnaudovP"]
[Black "jcibarra"]
[Result "1-0"]
[WhiteElo "2346"]
[BlackElo "2519"]
[TimeControl "180+2"]
[EndTime "18:35:17 PST"]
[Termination "ArnaudovP won by checkmate"]

1. Nf3 {[%clk 0:02:54.9]} 1... Nf6 {[%clk 0:03:00.7]} 2. c4 {[%clk 0:02:54.7]}
2... g6 {[%clk 0:03:01.5]} 3. Nc3 {[%clk 0:02:55]} 3... d6 {[%clk 0:03:02.9]} 4.
e4 {[%clk 0:02:56.1]} 4... Bg7 {[%clk 0:03:02.1]} 5. d4 {[%clk 0:02:57.6]} 5...
O-O {[%clk 0:03:03.8]} 6. h3 {[%clk 0:02:58.4]} 6... e5 {[%clk 0:03:04.9]} 7. d5
{[%clk 0:02:58.2]} 7... a5 {[%clk 0:03:06]} 8. g4 {[%clk 0:02:58.3]} 8... Na6
{[%clk 0:03:05.3]} 9. Be3 {[%clk 0:02:59]} 9... Nd7 {[%clk 0:03:06.4]} 10. Rg1
{[%clk 0:02:56.2]} 10... Ndc5 {[%clk 0:03:07.2]} 11. Be2 {[%clk 0:02:43.5]}
11... Kh8 {[%clk 0:03:07.2]} 12. a3 {[%clk 0:02:40.5]} 12... a4 {[%clk
0:03:05.4]} 13. Nd2 {[%clk 0:02:40.4]} 13... Bd7 {[%clk 0:03:06]} 14. Qc2 {[%clk
0:02:40.3]} 14... f5 {[%clk 0:02:58.1]} 15. g5 {[%clk 0:02:21.8]} 15... f4
{[%clk 0:02:45.3]} 16. Bxc5 {[%clk 0:02:21.3]} 16... Nxc5 {[%clk 0:02:47.2]} 17.
O-O-O {[%clk 0:02:21.7]} 17... Bxh3 {[%clk 0:02:44.5]} 18. Bg4 {[%clk
0:02:20.1]} 18... Bxg4 {[%clk 0:02:42.9]} 19. Rxg4 {[%clk 0:02:19.8]} 19... f3
{[%clk 0:02:43.1]} 20. Rh1 {[%clk 0:02:20.2]} 20... Rf4 {[%clk 0:02:42]} 21. Rg3
{[%clk 0:02:19.8]} 21... Bf8 {[%clk 0:02:30]} 22. Rgh3 {[%clk 0:02:10.5]} 22...
Rf7 {[%clk 0:02:29.4]} 23. Nxf3 {[%clk 0:02:07.2]} 23... Be7 {[%clk 0:02:30.1]}
24. Rg3 {[%clk 0:01:54.1]} 24... Qf8 {[%clk 0:02:18.9]} 25. Qe2 {[%clk
0:01:51.9]} 25... Nb3+ {[%clk 0:02:18.1]} 26. Kd1 {[%clk 0:01:47.6]} 26... Nd4
{[%clk 0:02:05.7]} 27. Nxd4 {[%clk 0:01:47]} 27... exd4 {[%clk 0:02:07]} 28. Nb5
{[%clk 0:01:47.6]} 28... Rxf2 {[%clk 0:02:07]} 29. Qd3 {[%clk 0:01:41.9]} 29...
Qf4 {[%clk 0:01:35.1]} 30. Rgh3 {[%clk 0:01:29.7]} 30... h5 {[%clk 0:01:30.3]}
31. gxh6 {[%clk 0:01:15.5]} 31... Bg5 {[%clk 0:01:30.6]} 32. Qxd4+ {[%clk
0:01:11]} 32... Kh7 {[%clk 0:01:31.2]} 33. Qg7# {[%clk 0:01:10]} 1-0

[Event "*** Titled Tuesday 3|2 Blitz"]
[Site "Chess.com"]
[Date "2015.11.03"]
[Round "8"]
[White "Noukii"]
[Black "Izoria123"]
[Result "0-1"]
[WhiteElo "2606"]
[BlackElo "2468"]
[TimeControl "180+2"]
[EndTime "18:35:20 PST"]
[Termination "Izoria123 won by resignation"]

1. d4 {[%clk 0:03:01.9]} 1... Nf6 {[%clk 0:03:00.6]} 2. c4 {[%clk 0:03:00.1]}
2... g6 {[%clk 0:03:01.5]} 3. Nc3 {[%clk 0:03:01.3]} 3... Bg7 {[%clk 0:03:02.6]}
4. Nf3 {[%clk 0:03:00.9]} 4... O-O {[%clk 0:03:00.5]} 5. e4 {[%clk 0:03:02.4]}
5... d6 {[%clk 0:03:01.3]} 6. Be2 {[%clk 0:03:03.4]} 6... e5 {[%clk 0:03:01.6]}
7. O-O {[%clk 0:03:05]} 7... c6 {[%clk 0:03:02.6]} 8. Be3 {[%clk 0:03:00.2]}
8... exd4 {[%clk 0:03:03.1]} 9. Nxd4 {[%clk 0:02:59.4]} 9... Re8 {[%clk
0:03:03.8]} 10. f3 {[%clk 0:02:49.7]} 10... d5 {[%clk 0:03:04.5]} 11. cxd5
{[%clk 0:02:50.1]} 11... Nxd5 {[%clk 0:03:06]} 12. Nxd5 {[%clk 0:02:49.1]} 12...
cxd5 {[%clk 0:03:07.1]} 13. Qb3 {[%clk 0:02:45.9]} 13... Nc6 {[%clk 0:03:03.4]}
14. Rad1 {[%clk 0:02:41.3]} 14... Bxd4 {[%clk 0:03:02.9]} 15. Bxd4 {[%clk
0:02:41.5]} 15... Nxd4 {[%clk 0:03:04.1]} 16. Rxd4 {[%clk 0:02:41.7]} 16... Qf6
{[%clk 0:03:05.5]} 17. Qxd5 {[%clk 0:02:27]} 17... Be6 {[%clk 0:03:00.3]} 18.
Qc5 {[%clk 0:02:27.7]} 18... Rac8 {[%clk 0:02:44.2]} 19. Qb4 {[%clk 0:02:26]}
19... a5 {[%clk 0:02:38]} 20. Qa4 {[%clk 0:02:14.1]} 20... Bxa2 {[%clk
0:02:23.9]} 21. Rfd1 {[%clk 0:02:09]} 21... Be6 {[%clk 0:02:01.5]} 22. Qxa5
{[%clk 0:02:03.1]} 22... Rc2 {[%clk 0:02:01.7]} 23. R1d2 {[%clk 0:02:01.5]}
23... Rxb2 {[%clk 0:01:59.9]} 24. e5 {[%clk 0:01:53.6]} 24... Rb1+ {[%clk
0:01:57.8]} 25. Bf1 {[%clk 0:01:54.8]} 25... Qg5 {[%clk 0:01:52.5]} 26. f4
{[%clk 0:01:47.6]} 26... Qh4 {[%clk 0:01:45.3]} 27. h3 {[%clk 0:00:51.4]} 27...
Qe1 {[%clk 0:01:22.9]} 0-1

[Event "*** Titled Tuesday 3|2 Blitz"]
[Site "Chess.com"]
[Date "2015.11.03"]
[Round "8"]
[White "AdrianaNikolova"]
[Black "simplerXiao"]
[Result "1-0"]
[WhiteElo "2233"]
[BlackElo "2331"]
[TimeControl "180+2"]
[EndTime "18:36:22 PST"]
[Termination "AdrianaNikolova won by checkmate"]

1. e4 {[%clk 0:03:01.9]} 1... c5 {[%clk 0:02:58.9]} 2. Nf3 {[%clk 0:03:01.5]}
2... g6 {[%clk 0:02:59.6]} 3. c3 {[%clk 0:03:02.3]} 3... Bg7 {[%clk 0:03:00.6]}
4. d4 {[%clk 0:03:03.8]} 4... cxd4 {[%clk 0:03:01.9]} 5. cxd4 {[%clk 0:03:05.7]}
5... d5 {[%clk 0:03:03.3]} 6. e5 {[%clk 0:03:07.1]} 6... Bg4 {[%clk 0:03:00.8]}
7. h3 {[%clk 0:03:08.4]} 7... Bxf3 {[%clk 0:03:00.8]} 8. Qxf3 {[%clk 0:03:10.3]}
8... Nc6 {[%clk 0:03:02.3]} 9. Bb5 {[%clk 0:03:10.9]} 9... h5 {[%clk 0:03:01.4]}
10. Nc3 {[%clk 0:03:09.9]} 10... e6 {[%clk 0:03:02.4]} 11. O-O {[%clk 0:03:08]}
11... Ne7 {[%clk 0:03:02.7]} 12. Bg5 {[%clk 0:03:08.8]} 12... O-O {[%clk
0:03:00.7]} 13. Rad1 {[%clk 0:03:01.7]} 13... Qb6 {[%clk 0:02:50.1]} 14. Bxc6
{[%clk 0:03:01.6]} 14... Nxc6 {[%clk 0:02:50.7]} 15. Na4 {[%clk 0:02:50.1]}
15... Qb4 {[%clk 0:02:49]} 16. b3 {[%clk 0:02:43.6]} 16... Nxd4 {[%clk
0:02:35.5]} 17. Qe3 {[%clk 0:02:31.9]} 17... Nf5 {[%clk 0:02:32.1]} 18. Qe2
{[%clk 0:02:23.1]} 18... h4 {[%clk 0:02:24.8]} 19. Nb2 {[%clk 0:02:22.3]} 19...
Rfc8 {[%clk 0:02:18.8]} 20. Nd3 {[%clk 0:02:21.7]} 20... Qe4 {[%clk 0:02:19.2]}
21. Qg4 {[%clk 0:02:06.2]} 21... Rc2 {[%clk 0:02:07.4]} 22. Rfe1 {[%clk
0:02:06.3]} 22... Qxg4 {[%clk 0:02:04.2]} 23. hxg4 {[%clk 0:02:08.2]} 23... Nd4
{[%clk 0:02:00.4]} 24. Bxh4 {[%clk 0:01:48.8]} 24... Ne2+ {[%clk 0:01:56]} 25.
Kf1 {[%clk 0:01:45.2]} 25... Nc3 {[%clk 0:01:44.1]} 26. Rc1 {[%clk 0:01:45]}
26... Rxc1 {[%clk 0:01:43.1]} 27. Rxc1 {[%clk 0:01:46.9]} 27... Nxa2 {[%clk
0:01:43.7]} 28. Rc2 {[%clk 0:01:41.5]} 28... a6 {[%clk 0:01:28.6]} 29. Rxa2
{[%clk 0:01:41.8]} 29... Rc8 {[%clk 0:01:28.6]} 30. Ke2 {[%clk 0:01:41]} 30...
Rc3 {[%clk 0:01:27.5]} 31. b4 {[%clk 0:01:40.7]} 31... Bh6 {[%clk 0:01:24.4]}
32. f4 {[%clk 0:01:38.6]} 32... Rc4 {[%clk 0:01:15.5]} 33. g5 {[%clk 0:01:25.1]}
33... Bf8 {[%clk 0:01:15.3]} 34. Be1 {[%clk 0:01:24]} 34... Kg7 {[%clk
0:01:13.1]} 35. Rb2 {[%clk 0:01:18.6]} 35... Be7 {[%clk 0:01:09.8]} 36. b5
{[%clk 0:01:17.8]} 36... Bd8 {[%clk 0:01:06.4]} 37. bxa6 {[%clk 0:01:18]} 37...
bxa6 {[%clk 0:01:07.7]} 38. Rb8 {[%clk 0:01:17.6]} 38... Bc7 {[%clk 0:01:08.6]}
39. Ra8 {[%clk 0:01:15.5]} 39... Rc2+ {[%clk 0:01:08.1]} 40. Kf3 {[%clk
0:01:15.6]} 40... Ra2 {[%clk 0:01:04]} 41. Bb4 {[%clk 0:01:14.8]} 41... a5
{[%clk 0:01:02.5]} 42. Be7 {[%clk 0:01:15.5]} 42... f5 {[%clk 0:00:56.1]} 43.
gxf6+ {[%clk 0:01:13.3]} 43... Kf7 {[%clk 0:00:56.9]} 44. Rf8# {[%clk
0:01:13.7]} 1-0

[Event "*** Titled Tuesday 3|2 Blitz"]
[Site "Chess.com"]
[Date "2015.11.03"]
[Round "8"]
[White "DeviatkinAndrey"]
[Black "wanyaland"]
[Result "1-0"]
[WhiteElo "2473"]
[BlackElo "2244"]
[TimeControl "180+2"]
[EndTime "18:36:28 PST"]
[Termination "DeviatkinAndrey won by resignation"]

1. d4 {[%clk 0:02:58.7]} 1... d5 {[%clk 0:03:00.5]} 2. Nf3 {[%clk 0:02:59.1]}
2... c6 {[%clk 0:03:01.6]} 3. c4 {[%clk 0:02:58.7]} 3... Nf6 {[%clk 0:03:01.5]}
4. cxd5 {[%clk 0:02:58.5]} 4... cxd5 {[%clk 0:03:01.9]} 5. Nc3 {[%clk
0:03:00.1]} 5... Nc6 {[%clk 0:03:02.8]} 6. Bf4 {[%clk 0:03:01]} 6... Bf5 {[%clk
0:03:03.8]} 7. e3 {[%clk 0:03:02.3]} 7... e6 {[%clk 0:03:04.5]} 8. Qb3 {[%clk
0:02:55.8]} 8... Qb6 {[%clk 0:03:03.7]} 9. Qxb6 {[%clk 0:02:34.9]} 9... axb6
{[%clk 0:03:03.8]} 10. Bb5 {[%clk 0:02:36.4]} 10... Nd7 {[%clk 0:03:03.1]} 11.
O-O {[%clk 0:02:36.2]} 11... Be7 {[%clk 0:03:03.8]} 12. Rfc1 {[%clk 0:02:32.9]}
12... O-O {[%clk 0:03:02.8]} 13. a3 {[%clk 0:02:32]} 13... Rfc8 {[%clk
0:03:02.8]} 14. Nd2 {[%clk 0:02:32.3]} 14... h5 {[%clk 0:02:58.4]} 15. h3 {[%clk
0:02:27.2]} 15... g5 {[%clk 0:02:56.2]} 16. Bh2 {[%clk 0:02:27.7]} 16... Kh7
{[%clk 0:02:54.6]} 17. Be2 {[%clk 0:02:26.6]} 17... Kh6 {[%clk 0:02:43.2]} 18.
g4 {[%clk 0:02:16.2]} 18... hxg4 {[%clk 0:02:40.7]} 19. hxg4 {[%clk 0:02:17.5]}
19... Bg6 {[%clk 0:02:41.2]} 20. Nb5 {[%clk 0:02:18.8]} 20... Kg7 {[%clk
0:02:41.2]} 21. Nd6 {[%clk 0:02:19.2]} 21... Bxd6 {[%clk 0:02:35.2]} 22. Bxd6
{[%clk 0:02:20.1]} 22... Nf6 {[%clk 0:02:34.8]} 23. Rc3 {[%clk 0:02:18]} 23...
Rh8 {[%clk 0:02:32.3]} 24. Kg2 {[%clk 0:02:05.7]} 24... Rh4 {[%clk 0:02:27.6]}
25. Bg3 {[%clk 0:02:05]} 25... Rh7 {[%clk 0:02:25.7]} 26. Rh1 {[%clk 0:02:02.5]}
26... Rah8 {[%clk 0:02:22.3]} 27. Rxh7+ {[%clk 0:02:02.8]} 27... Rxh7 {[%clk
0:02:21.6]} 28. b4 {[%clk 0:01:44.3]} 28... Ne8 {[%clk 0:02:03.6]} 29. Bb5
{[%clk 0:01:39.2]} 29... Nf6 {[%clk 0:01:46]} 30. Bxc6 {[%clk 0:01:38.2]} 30...
bxc6 {[%clk 0:01:45.8]} 31. Be5 {[%clk 0:01:39.4]} 31... Rh8 {[%clk 0:01:31.2]}
32. Rxc6 {[%clk 0:01:30.2]} 32... Ra8 {[%clk 0:01:31.4]} 33. Rc3 {[%clk
0:01:24.9]} 33... Bh7 {[%clk 0:01:27.6]} 34. f4 {[%clk 0:01:02.3]} 34... Kg6
{[%clk 0:01:25.9]} 35. f5+ {[%clk 0:01:03.7]} 35... Kg7 {[%clk 0:01:16]} 36.
fxe6 {[%clk 0:01:04.9]} 36... fxe6 {[%clk 0:01:16.2]} 37. Rc7+ {[%clk
0:01:04.9]} 1-0